bitfinex-derivatives/quotes_ETHF0:USTF0_20250604
["timestamp","ask_amount","ask_price","bid_price","bid_amount"]
[1749057974356,0.75503,2647.8,2647.7,0.75501]
[1749057974552,0.75503,2647.8,2647.7,5.51401]
[1749057974757,0.75503,2647.8,2647.7,4.759]
[1749057975655,0.75503,2647.8,2647.7,5.51402]
[1749057976061,0.75498,2647.9,2647.8,0.75496]
[1749057976765,3.96840899,2648.0,2647.9,0.75496]
[1749057977659,3.21345899,2648.0,2647.9,0.75496]
[1749057978062,3.96838899,2648.0,2647.9,0.75496]
[1749057978762,3.21345899,2648.0,2647.9,0.75496]
[1749057978961,0.00565899,2648.0,2647.9,0.75496]
[1749057979262,0.00565899,2648.0,2647.9,1.97246]
[1749057980667,0.75481,2648.5,2648.4,0.75479]
[1749057980861,3.2078,2648.6,2648.5,0.75479]
[1749057981059,3.2078,2648.6,2648.5,5.51279]
[1749057981763,0.75476,2648.6,2648.5,5.51279]
[1749057982463,2.02555,2648.7,2648.6,0.75476]
[1749057982862,0.6281,2648.7,2648.6,0.75476]
[1749057983764,0.6281,2648.7,2648.5,5.51277]
[1749057983964,0.75476,2648.6,2648.5,5.51277]
[1749057984161,0.6281,2648.7,2648.6,0.75476]
[1749057984358,0.00565899,2648.8,2648.7,0.75473]
[1749057984768,0.00565899,2648.8,2648.5,4.758]
[1749057984967,0.75476,2648.6,2648.5,0.75479]
[1749057985163,0.75476,2648.6,2648.5,5.47979]
[1749057986266,1.61053755,2648.6,2648.5,5.47879]
[1749057986871,0.85577755,2648.6,2648.3,38.073]
[1749057987075,0.75482,2648.4,2648.3,38.073]
[1749057987269,1.61059755,2648.4,2648.3,42.797]
[1749057987465,2.92427928,2648.4,2648.3,43.55185]
[1749057987865,2.16945928,2648.4,2648.3,43.55185]
[1749057988773,2.92427928,2648.4,2648.3,43.55185]
[1749057989474,2.16945928,2648.4,2648.3,43.55185]
[1749057990474,0.85565928,2648.4,2648.3,43.55185]
[1749057991772,1.2444,2648.5,2648.3,42.797]
[1749057991980,1.2444,2648.5,2648.4,0.75482]
[1749057992178,1.46175958,2648.5,2648.4,0.75482]
[1749057992378,1.46149316,2648.5,2648.4,0.75482]
[1749057994691,0.6059,2648.5,2648.4,0.75482]
[1749057994977,1.3607,2648.5,2648.4,0.75482]
[1749057995377,1.36069,2648.5,2648.4,0.75482]
[1749057996488,2.2253242,2648.5,2648.4,0.75482]
[1749057997386,0.75482,2648.4,2648.3,43.55183]
[1749057997586,0.75482,2648.4,2648.3,38.073]
[1749057997788,0.75482,2648.4,2648.3,42.797]
[1749057998179,0.75482,2648.4,2648.3,43.55185]
[1749057998487,1.36072,2648.5,2648.4,0.75482]
[1749057998687,2.22622586,2648.5,2648.4,0.75482]
[1749057999486,0.75482,2648.4,2648.3,43.55183]
[1749057999687,2.93602586,2648.4,2648.3,43.55183]
[1749057999880,1.62032586,2648.4,2648.3,43.55183]
[1749058000390,0.75482,2648.4,2648.3,43.55183]
[1749058000591,1.36071,2648.5,2648.4,0.75482]
[1749058000886,0.75482,2648.4,2648.3,38.073]
[1749058001090,1.88724,2648.2,2647.8,4.724]
[1749058001281,0.75499,2647.8,2647.7,4.724]
[1749058001492,4.82907183,2647.8,2647.7,4.724]
[1749058002085,1.62127183,2647.8,2647.7,4.724]
[1749058002281,1.62127183,2647.8,2647.7,5.47902]
[1749058002480,1.62247191,2647.8,2647.7,5.47902]
[1749058004187,0.86748191,2647.8,2647.7,5.47902]
[1749058004484,1.62247191,2647.8,2647.7,5.47902]
[1749058005188,0.75505,2647.6,2647.5,0.76070899]
[1749058005391,1.62253191,2647.6,2647.5,5.48470899]
[1749058005783,1.62253191,2647.6,2647.5,0.00565899]
[1749058005986,1.62253191,2647.6,2647.5,4.72965899]
[1749058006488,1.62253191,2647.6,2647.5,5.48473899]
[1749058007788,0.86748191,2647.6,2647.5,5.48473899]
[1749058007979,1.62253191,2647.6,2647.5,5.48473899]
[1749058008185,0.86748191,2647.6,2647.5,5.48473899]
[1749058009392,1.3022,2647.8,2647.6,0.75502]
[1749058009590,1.62177117,2647.7,2647.6,0.75502]
[1749058011289,0.86673117,2647.7,2647.6,0.75502]
[1749058012193,0.86673117,2647.7,2647.6,2.04262]
[1749058013893,0.755,2647.8,2647.7,0.75502]
[1749058014190,1.62251848,2647.8,2647.7,0.75502]
[1749058017293,0.86751848,2647.8,2647.7,0.75502]
[1749058017894,3.8339,2648.4,2648.2,0.75485]
[1749058018097,0.8678315,2648.3,2648.2,0.75485]
[1749058018303,1.38094,2648.4,2648.3,0.75485]
[1749058018810,0.6261,2648.4,2648.3,0.75485]
[1749058019113,0.7548,2648.5,2648.3,1.2534]
[1749058019410,0.75482,2648.4,2648.3,0.75483]
[1749058021511,0.75481,2648.5,2648.4,0.75479]
[1749058023002,0.6094,2648.7,2648.3,1.8871]
[1749058023201,0.75482,2648.5,2648.4,0.75479]
[1749058029311,0.75479,2648.6,2648.5,0.75476]
[1749058029608,0.75476,2648.7,2648.6,0.75473]
[1749058029910,0.75476,2648.7,2648.6,5.41773]
[1749058030106,0.75476,2648.7,2648.6,4.663]
[1749058030414,1.61984885,2648.7,2648.6,4.663]
[1749058030614,1.61984885,2648.7,2648.6,5.41776]
[1749058031705,1.61984885,2648.7,2648.6,4.663]
[1749058032903,1.61984885,2648.7,2648.6,5.41776]
[1749058033304,1.61984885,2648.7,2648.6,4.663]
[1749058033509,1.61984885,2648.7,2648.6,5.41776]
[1749058034415,1.61984885,2648.7,2648.6,4.663]
[1749058034913,1.61984885,2648.7,2648.6,5.41776]
[1749058035214,0.86508885,2648.7,2648.6,5.41776]
[1749058035517,0.86508885,2648.7,2648.6,8.62556]
[1749058035813,0.86508885,2648.7,2648.6,9.1189906]
[1749058037715,0.75458,2649.3,2649.2,0.75455]
[1749058038017,0.75456,2649.4,2649.3,0.75453]
[1749058038313,0.75456,2649.4,2649.3,1.99493]
[1749058038515,3.8201,2649.7,2649.6,0.75448]
[1749058038703,4.57455,2649.7,2649.6,5.41648]
[1749058039418,3.2078,2649.7,2649.6,5.41648]
[1749058039619,3.96225,2649.7,2649.6,5.41648]
[1749058040011,3.96225,2649.7,2649.4,0.00565899]
[1749058040012,3.2078,2649.7,2649.4,0.00565899]
[1749058040217,0.75451,2649.5,2649.4,0.00565899]
[1749058040411,0.75451,2649.5,2649.4,4.66765899]
[1749058041115,1.88634,2649.4,2649.1,4.662]
[1749058041313,0.75459,2649.2,2649.1,4.662]
[1749058041515,1.88661,2649.1,2648.6,1.939]
[1749058041711,0.75471,2648.8,2648.7,4.662]
[1749058041917,0.75471,2648.8,2648.7,5.41673]
[1749058043724,0.75469,2648.9,2648.8,0.75468]
[1749058045123,0.6311,2649.1,2648.7,6.54883]
[1749058045419,0.75467,2649.0,2648.9,0.75465]
[1749058045623,0.75476,2648.6,2648.5,8.99e-06]
[1749058045821,0.75476,2648.6,2646.4,3.77686]
[1749058045822,0.7551,2647.4,2647.3,4.617]
[1749058046820,0.75513,2647.3,2647.2,1.22814059]
[1749058047022,0.75512,2647.4,2647.3,5.37213]
[1749058047620,3.96289,2647.5,2647.4,0.7551]
[1749058047817,3.2078,2647.5,2647.4,0.7551]
[1749058048325,3.2078,2647.5,2647.4,2.0181]
[1749058049724,4.06765037,2647.5,2647.4,2.0181]
[1749058051922,4.06727125,2647.5,2647.4,2.0181]
[1749058052121,4.06727125,2647.5,2647.4,10.3971]
[1749058052429,3.2078,2648.2,2647.6,1.88762]
[1749058052624,3.2078,2648.2,2647.4,9.642]
[1749058052625,0.85961617,2648.1,2647.7,7.0873]
[1749058052823,0.85961617,2648.0,2647.8,4.618]
[1749058053020,0.75491,2648.1,2647.9,0.75494]
[1749058053219,0.75491,2648.1,2647.8,4.618]
[1749058053220,0.75491,2648.1,2648.0,0.75493]
[1749058053428,0.85867041,2648.1,2647.5,3.379]
[1749058053730,3.9628,2647.8,2647.7,0.75502]
[1749058054035,4.82147041,2647.8,2647.7,0.75502]
[1749058054733,4.82108933,2647.8,2647.7,5.37302]
[1749058055534,4.06608933,2647.8,2647.7,5.37302]
[1749058055727,3.2078,2647.8,2647.7,5.37302]
[1749058057427,3.96279,2647.8,2647.7,5.37302]
[1749058058232,3.2078,2647.8,2647.7,5.37302]
[1749058059437,0.75493,2648.0,2647.9,0.75493]
[1749058059634,2.82300467,2648.0,2647.9,0.75493]
[1749058060632,1.96463,2648.0,2647.9,0.75493]
[1749058060833,0.75499,2647.9,2647.8,0.75498]
[1749058062337,3.8462,2648.1,2647.9,0.75496]
[1749058062636,1.61322401,2648.0,2647.9,0.75496]
[1749058064237,0.75499,2647.9,2647.8,0.75497]
[1749058064427,1.61328401,2647.9,2647.8,0.75497]
[1749058064628,0.75499,2647.9,2647.8,0.75497]
[1749058065232,0.75499,2647.8,2647.7,4.618]
[1749058065532,0.75491,2648.1,2647.7,5.37302]
[1749058065735,0.75491,2648.1,2648.0,0.75493]
[1749058066633,3.2078,2648.2,2648.1,0.75491]
[1749058066833,4.06616299,2648.2,2648.1,5.37291]
[1749058067034,3.2078,2648.2,2648.1,5.37291]
[1749058068833,4.82174458,2648.2,2648.1,5.37291]
[1749058069234,4.06686458,2648.2,2648.1,5.37291]
[1749058069535,3.2078,2648.2,2648.1,5.37291]
[1749058069740,4.06737937,2648.2,2648.1,5.37291]
[1749058071438,4.82225937,2648.2,2648.1,5.37291]
[1749058071840,4.06737937,2648.2,2648.1,5.37291]
[1749058072342,4.82225937,2648.2,2648.1,5.37291]
[1749058072839,4.82225937,2648.2,2648.1,4.618]
[1749058073435,6.03795937,2648.2,2648.1,4.618]
[1749058074041,5.17838,2648.2,2648.1,4.618]
[1749058074241,6.03975493,2648.2,2648.1,4.618]
[1749058075229,4.82405493,2648.2,2648.1,5.37291]
[1749058075431,4.82405493,2648.2,2648.1,4.618]
[1749058075639,4.06917493,2648.2,2648.1,5.37291]
[1749058076139,4.82405493,2648.2,2648.1,5.37291]
[1749058077240,4.06917493,2648.2,2648.1,5.37291]
[1749058077447,4.06917493,2648.2,2648.1,6.64441]
[1749058078243,4.82405493,2648.2,2648.1,4.618]
[1749058078438,4.82515645,2648.2,2648.1,4.618]
[1749058078640,4.82515645,2648.2,2648.1,5.37291]
[1749058078945,4.82515645,2648.2,2648.1,4.618]
[1749058079149,4.82515645,2648.2,2648.1,5.37291]
[1749058079443,4.82515645,2648.2,2648.1,4.618]
[1749058079740,6.62755645,2648.2,2648.1,4.618]
[1749058079952,0.75502,2647.7,2647.6,0.6446]
[1749058080138,0.75502,2647.7,2647.6,6.03665]
[1749058080434,1.61749645,2647.7,2647.6,6.03665]
[1749058080746,1.61749645,2647.7,2647.6,4.637]
[1749058081243,1.61776813,2647.7,2647.6,4.637]
[1749058082652,1.61776813,2647.7,2647.6,5.39205]
[1749058082853,1.61776813,2647.7,2647.6,4.637]
[1749058085750,1.61793807,2647.7,2647.6,5.39205]
[1749058087746,0.86291807,2647.7,2647.6,5.39205]
[1749058088148,1.61793807,2647.7,2647.6,5.39205]
[1749058088349,1.61793807,2647.7,2647.5,1.2583]
[1749058088350,0.75505,2647.6,2647.5,1.2583]
[1749058088652,1.61796807,2647.6,2647.5,5.8963]
[1749058088855,1.61796807,2647.6,2647.5,4.638]
[1749058089450,1.61796807,2647.6,2647.5,5.39307]
[1749058090158,1.61717323,2647.6,2647.5,5.39307]
[1749058091857,1.61717323,2647.6,2647.5,4.638]
[1749058094556,0.75505,2647.6,2647.5,4.638]
[1749058094752,1.61697301,2647.6,2647.5,5.39308]
[1749058094960,1.61697301,2647.6,2647.5,4.638]
[1749058095160,1.61697301,2647.6,2647.5,5.39308]
[1749058095464,1.61697301,2647.6,2647.5,4.638]
[1749058096862,0.75516,2647.2,2647.1,4.64365899]
[1749058097155,3.96296,2647.2,2647.1,4.64365899]
[1749058097461,4.82488301,2647.2,2647.1,4.64365899]
[1749058098862,4.06972301,2647.2,2647.1,5.39884899]
[1749058099056,4.06903321,2647.2,2647.1,4.64365899]
[1749058099257,4.82419321,2647.2,2647.1,4.64365899]
[1749058099455,4.82419321,2647.2,2647.1,0.00565899]
[1749058099757,4.82394444,2647.2,2647.1,0.00565899]
[1749058099961,0.75528,2646.8,2646.7,4.638]
[1749058100156,4.82406444,2646.8,2646.7,5.3933]
[1749058100362,4.82406444,2646.8,2646.7,4.638]
[1749058100562,4.06878444,2646.8,2646.7,5.3933]
[1749058100962,3.2078,2646.8,2646.7,6.6845]
[1749058101862,3.963,2647.1,2647.0,0.75522]
[1749058102061,4.82417712,2647.1,2647.0,0.75522]
[1749058102462,0.75524,2647.0,2646.9,0.75523]
[1749058102767,1.61641712,2647.0,2646.9,0.75523]
[1749058103364,0.86117712,2647.0,2646.9,0.75523]
[1749058104564,1.61639712,2647.0,2646.9,0.75523]
[1749058105270,0.86117712,2647.0,2646.9,0.75523]
[1749058107768,3.963,2647.1,2647.0,0.75522]
[1749058107969,4.82333193,2647.1,2647.0,0.75522]
[1749058109267,4.06813193,2647.1,2647.0,0.75522]
[1749058109663,4.06813193,2647.1,2646.5,0.45495637]
[1749058109974,4.82336193,2647.0,2646.9,0.75525]
[1749058110266,4.06813193,2647.0,2646.9,0.75525]
[1749058110567,0.75533,2646.6,2646.5,5.40501899]
[1749058110763,4.82346193,2646.6,2646.5,4.64965899]
[1749058111164,4.82346193,2646.6,2646.5,5.40501899]
[1749058111366,4.82346193,2646.6,2646.5,4.64965899]
[1749058112082,4.84550021,2646.6,2646.5,4.64965899]
[1749058112985,1.88853,2646.4,2646.2,4.644]
[1749058113179,5.47729021,2646.3,2646.2,4.644]
[1749058113382,6.09719021,2646.3,2646.2,4.644]
[1749058114182,6.09719021,2646.3,2646.2,5.39945]
[1749058114379,5.34177021,2646.3,2646.2,5.39945]
[1749058114882,0.88237021,2646.3,2646.2,5.39945]
[1749058115283,4.09017021,2646.3,2646.2,5.39945]
[1749058116185,4.84559021,2646.3,2646.2,5.39945]
[1749058116382,4.09017021,2646.3,2646.2,5.39945]
[1749058116584,4.08835595,2646.3,2646.2,5.39945]
[1749058117787,4.84377595,2646.3,2646.2,5.39945]
[1749058118086,4.08835595,2646.3,2646.2,5.39945]
[1749058118479,0.75538,2646.5,2646.2,5.39945]
[1749058118689,0.75538,2646.5,2646.4,0.75536]
[1749058118884,1.63492777,2646.5,2646.4,0.75536]
[1749058119083,1.88848,2646.4,2646.0,38.072]
[1749058119277,0.60295899,2646.8,2645.5,0.38653601]
[1749058119278,0.75562,2645.6,2645.5,4.645]
[1749058119483,3.96342,2645.6,2645.5,4.645]
[1749058119683,4.84288136,2645.6,2645.5,4.645]
[1749058119984,0.7557,2645.3,2645.2,5.2704]
[1749058120190,3.2078,2645.3,2645.2,6.02613]
[1749058120390,3.2078,2645.3,2645.2,7.32893]
[1749058120895,3.2078,2645.3,2645.2,7.77679846]
[1749058121785,3.2078,2645.3,2645.2,5.40073]
[1749058121987,3.2078,2645.3,2645.2,4.645]
[1749058121988,3.9635,2645.3,2645.2,4.645]
[1749058122489,4.84084536,2645.3,2645.2,4.645]
[1749058123591,4.08514536,2645.3,2645.2,5.40073]
[1749058124189,4.08514536,2645.3,2644.6,0.15473671]
[1749058124190,0.75588,2644.7,2644.6,0.15473671]
[1749058124490,2.4564,2645.7,2644.8,0.75585]
[1749058124491,0.0056699,2644.9,2644.8,0.75585]
[1749058124690,0.0056699,2644.9,2644.7,2.512]
[1749058124995,0.0056699,2644.9,2644.8,1.98805]
[1749058125190,0.0056699,2644.9,2644.6,0.15473671]
[1749058125393,3.2078,2644.7,2644.6,0.91063671]
[1749058125692,0.7614899,2644.9,2644.8,0.75585]
[1749058125890,0.0056699,2644.9,2644.8,0.75585]
[1749058126086,0.0056699,2644.9,2644.8,5.40185]
[1749058126293,0.0056699,2644.9,2644.8,10.40185]
[1749058126485,0.0056699,2644.9,2644.8,5.75585]
[1749058126684,0.0056699,2644.9,2644.8,10.40185]
[1749058127387,0.0056699,2644.9,2644.8,5.40185]
[1749058129787,0.0056699,2644.9,2644.7,4.647]
[1749058129986,0.0056699,2644.9,2644.8,0.75585]
[1749058130380,0.0056699,2644.9,2644.8,2.00595]
[1749058131092,3.2078,2645.3,2645.2,0.75573]
[1749058131389,3.2078,2645.3,2645.2,5.40273]
[1749058131594,3.2078,2645.6,2645.5,0.75565]
[1749058131890,3.2078,2645.6,2645.5,5.40265]
[1749058133485,0.0056699,2645.8,2645.7,0.75559]
[1749058134588,0.0056699,2645.8,2645.5,4.647]
[1749058134787,3.96342,2645.6,2645.5,4.647]
[1749058135295,4.83966348,2645.6,2645.5,4.647]
[1749058136796,4.83966348,2645.6,2645.5,5.40265]
[1749058137291,4.83966348,2645.6,2645.5,4.647]
[1749058138199,4.84091392,2645.6,2645.5,4.647]
[1749058138602,0.75568,2645.4,2645.3,0.7613499]
[1749058138898,0.75568,2645.4,2645.3,5.4613499]
[1749058139291,2.29483356,2645.4,2645.3,4.7056699]
[1749058139500,3.58633356,2645.4,2645.3,4.7056699]
[1749058139895,3.58633356,2645.4,2645.3,5.4613699]
[1749058140898,3.58633356,2645.4,2645.3,4.7056699]
[1749058141102,3.58633356,2645.4,2645.3,0.0056699]
[1749058141297,0.75588,2644.7,2644.6,0.15473671]
[1749058141601,4.84221835,2644.7,2644.6,0.15473671]
[1749058141801,4.84221835,2644.7,2644.6,0.91063671]
[1749058142599,4.84221835,2644.7,2644.6,0.15473671]
[1749058143116,4.08633835,2644.7,2644.6,0.91063671]
[1749058143398,4.84221835,2644.7,2644.6,0.91063671]
[1749058143597,4.84221835,2644.7,2644.6,0.15473671]
[1749058143904,3.2078,2644.7,2644.6,0.91063671]
[1749058144093,4.5623,2645.0,2644.6,0.91063671]
[1749058144401,0.87802034,2644.9,2644.8,0.75583]
[1749058144602,0.75585,2644.8,2644.7,5.45686]
[1749058144804,1.63387034,2644.8,2644.7,4.701]
[1749058145003,1.63387034,2644.8,2644.7,5.45688]
[1749058145298,0.75585,2644.8,2644.7,5.45688]
[1749058145801,1.63421377,2644.8,2644.7,5.45688]
[1749058147106,0.87836377,2644.8,2644.7,5.45688]
[1749058147291,4.56231,2645.0,2644.9,0.75582]
[1749058147497,5.44080546,2645.0,2644.9,0.75582]
[1749058147795,0.75585,2644.8,2644.7,0.75586]
[1749058147997,1.63434546,2644.8,2644.7,5.45686]
[1749058148606,1.63434546,2644.8,2644.7,4.701]
[1749058149004,1.63434546,2644.8,2644.7,5.45688]
[1749058149702,1.63502618,2644.8,2644.7,5.45688]
[1749058150398,1.63502618,2644.8,2644.7,4.701]
[1749058151197,1.63502618,2644.8,2644.7,5.45688]
[1749058151402,1.63502618,2644.8,2644.7,4.701]
[1749058151807,1.63502618,2644.8,2644.7,0.75588]
[1749058152103,0.87917618,2644.8,2644.7,5.45688]
[1749058152303,0.87917618,2644.8,2644.7,0.75588]
[1749058152503,1.63502618,2644.8,2644.7,5.45688]
[1749058152699,0.87917618,2644.8,2644.7,5.45688]
[1749058154204,0.75584,2644.9,2644.8,0.75585]
[1749058154400,1.63488393,2644.9,2644.8,0.75585]
[1749058155406,1.63488393,2644.9,2644.8,5.45785]
[1749058156509,0.75588,2644.7,2644.6,0.15473671]
[1749058156703,3.2078,2644.7,2644.6,5.61263671]
[1749058157006,4.08684393,2644.7,2644.6,5.61263671]
[1749058157495,4.84272393,2644.7,2644.6,5.61263671]
[1749058158108,4.08684393,2644.7,2644.6,5.61263671]
[1749058159709,4.84272393,2644.7,2644.6,5.61263671]
[1749058160111,4.84272393,2644.7,2644.6,4.85673671]
[1749058160513,4.08684393,2644.7,2644.6,5.61263671]
[1749058160713,4.84272393,2644.7,2644.6,5.61263671]
[1749058160910,4.08684393,2644.7,2644.6,5.61263671]
[1749058161110,4.84272393,2644.7,2644.6,5.61263671]
[1749058161713,4.08684393,2644.7,2644.6,5.61263671]
[1749058162302,4.84272393,2644.7,2644.6,0.91063671]
[1749058162509,4.84272393,2644.7,2644.6,0.15473671]
[1749058163512,4.84272393,2644.7,2644.6,0.91063671]
[1749058164313,4.84272393,2644.7,2644.6,0.15473671]
[1749058164513,4.84272393,2644.7,2644.6,0.91063671]
[1749058165613,4.08684393,2644.7,2644.6,0.91063671]
[1749058166412,4.84272393,2644.7,2644.6,0.91063671]
[1749058167123,4.84272393,2644.7,2644.6,0.15473671]
[1749058167321,3.96368,2644.7,2644.6,4.82073671]
[1749058167616,4.84461412,2644.7,2644.6,4.82073671]
[1749058167816,4.84461412,2644.7,2644.6,5.57663671]
[1749058168117,4.84461412,2644.7,2644.6,0.91063671]
[1749058168322,4.84461412,2644.7,2644.6,0.15473671]
[1749058168516,0.75599,2644.3,2644.2,5.2744]
[1749058168711,4.08873412,2644.3,2643.1,0.38489601]
[1749058168917,3.2078,2644.0,2643.6,0.75619]
[1749058169115,0.88093412,2643.9,2643.8,0.75613]
[1749058169318,3.2078,2644.3,2643.8,0.75613]
[1749058169319,3.2078,2644.3,2644.2,0.75602]
[1749058169619,4.08953172,2644.3,2644.2,5.42202]
[1749058171622,4.08981052,2644.3,2644.2,5.42202]
[1749058171921,4.08981052,2644.3,2644.2,6.66102]
[1749058172321,4.08981052,2644.3,2644.2,5.42202]
[1749058172826,3.2078,2644.3,2644.2,5.42202]
[1749058173129,4.08921737,2644.3,2644.2,5.42202]
[1749058174428,4.08921737,2644.3,2644.2,6.66102]
[1749058174429,0.88141737,2644.3,2644.2,6.66102]
[1749058176226,0.0056699,2644.5,2644.4,0.75596]
[1749058176526,0.88630956,2644.5,2644.4,0.75596]
[1749058177523,0.75599,2644.4,2644.3,0.75599]
[1749058177722,0.88063966,2644.4,2644.3,0.75599]
[1749058179225,0.88063966,2644.4,2644.3,5.42723529]
[1749058179933,1.63659966,2644.4,2644.3,5.42723529]
[1749058180129,1.63659966,2644.4,2644.3,4.67124529]
[1749058180530,2.86203399,2644.4,2644.3,4.67124529]
[1749058180729,2.86203399,2644.4,2644.3,5.42723529]
[1749058181132,2.86203399,2644.4,2644.3,4.67124529]
[1749058182025,2.86203399,2644.4,2644.3,0.00524529]
[1749058183026,2.86203399,2644.4,2644.3,0.76123529]
[1749058183230,0.75613,2643.8,2643.7,42.783]
[1749058183425,4.84430399,2643.8,2643.7,42.783]
[1749058183734,4.84430399,2643.8,2643.7,43.53916]
[1749058184224,4.08817399,2643.8,2643.7,43.53916]
[1749058184831,2.52123,2644.3,2644.0,0.75608]
[1749058184832,3.2078,2644.1,2644.0,0.75608]
[1749058185036,4.08708624,2644.1,2644.0,0.75608]
[1749058185236,4.08708624,2644.1,2644.0,5.42208]
[1749058185631,4.84313624,2644.1,2644.0,5.42208]
[1749058185833,4.08708624,2644.1,2644.0,5.42208]
[1749058186035,4.84313624,2644.1,2644.0,4.666]
[1749058186235,4.84313624,2644.1,2644.0,5.42208]
[1749058186939,4.08708624,2644.1,2644.0,5.42208]
[1749058187240,4.84313624,2644.1,2644.0,5.42208]
[1749058187433,4.84313624,2644.1,2644.0,5.42308]
[1749058188035,4.84313624,2644.1,2644.0,0.75608]
[1749058188233,4.84313624,2644.1,2644.0,5.42308]
[1749058188841,4.84313624,2644.1,2644.0,0.75608]
[1749058189141,4.84313624,2644.1,2644.0,5.42308]
[1749058189337,4.84209035,2644.1,2644.0,5.42308]
[1749058190938,4.84209035,2644.1,2644.0,4.667]
[1749058191441,4.84209035,2644.1,2644.0,5.42308]
[1749058191636,4.84209035,2644.1,2644.0,4.667]
[1749058191941,4.84209035,2644.1,2644.0,5.42308]
[1749058192736,4.84209035,2644.1,2644.0,4.667]
[1749058193740,4.84288187,2644.1,2644.0,5.42308]
[1749058194240,4.84288187,2644.1,2644.0,0.75608]
[1749058194441,4.84288187,2644.1,2644.0,5.37808]
[1749058196041,0.75619,2643.6,2643.5,0.42635458]
[1749058196243,0.87903187,2643.6,2643.5,5.37822]
[1749058196439,1.635226,2643.6,2643.5,5.37822]
[1749058196645,4.086836,2643.6,2643.5,7.0030065]
[1749058196843,4.843026,2643.6,2643.5,7.0030065]
[1749058197043,4.086836,2643.6,2643.5,7.0030065]
[1749058200259,4.843026,2643.6,2643.5,6.2467865]
[1749058200463,4.843026,2643.6,2643.5,0.4230865]
[1749058200659,4.843026,2643.6,2643.5,5.37822]
[1749058200857,4.843026,2643.6,2643.5,4.622]
[1749058201256,3.96399,2643.6,2643.5,4.622]
[1749058201460,1.89055,2643.5,2642.7,1.8911]
[1749058201659,3.2078,2643.2,2643.1,0.75633]
[1749058201856,1.89084,2643.1,2642.4,41.3338]
[1749058202058,4.09239276,2643.0,2642.9,0.75639]
[1749058202358,0.75653,2642.4,2642.3,3.2078]
[1749058202665,0.75652,2642.5,2642.3,4.623]
[1749058202862,0.75656,2642.3,2642.2,0.6166]
[1749058203060,0.86916077,2642.3,2642.2,5.99619]
[1749058203367,3.2078,2642.7,2642.6,0.75648]
[1749058203665,0.75649,2642.6,2642.4,0.75651]
[1749058203864,0.75649,2642.6,2642.2,1.9067]
[1749058203865,3.2078,2642.7,2642.6,0.75648]
[1749058204063,4.07635537,2642.7,2642.6,0.75648]
[1749058204359,0.86855537,2642.7,2642.6,5.99608]
[1749058204758,3.2134699,2643.0,2642.9,0.75639]
[1749058205164,4.08158455,2643.0,2642.9,0.75639]
[1749058205661,4.08158455,2643.0,2642.9,4.623]
[1749058205853,4.08158455,2643.0,2642.6,0.6166]
[1749058206057,3.2078,2642.7,2642.6,0.75646]
[1749058206660,4.07527979,2642.7,2642.6,5.37946]
[1749058207059,4.07527979,2642.7,2642.6,5.91506023]
[1749058207262,3.2078,2642.7,2642.6,5.37946]
[1749058207568,3.2078,2643.5,2642.6,15.98889]
[1749058207768,3.96402,2643.5,2643.4,0.75625]
[1749058207964,5.47757612,2643.5,2643.4,5.38025]
[1749058208166,4.72135612,2643.5,2643.4,5.38025]
[1749058208470,5.47757612,2643.5,2643.4,5.91673515]
[1749058208671,4.72135612,2643.5,2643.4,5.91673515]
[1749058209362,4.72239146,2643.5,2643.4,5.91673515]
[1749058209763,4.72239146,2643.5,2643.4,5.16048515]
[1749058209764,5.47861146,2643.5,2643.4,5.16048515]
[1749058209965,6.72041146,2643.5,2643.4,5.16048515]
[1749058210166,6.72041146,2643.5,2643.4,0.53648515]
[1749058210366,6.72041146,2643.5,2643.4,5.16048515]
[1749058210567,5.96419146,2643.5,2643.4,6.45323031]
[1749058210867,5.96419146,2643.5,2643.4,5.91573515]
[1749058211073,4.72239146,2643.5,2643.4,5.91573515]
[1749058212269,9.72239146,2643.5,2643.4,0.53648515]
[1749058212471,12.91486146,2643.5,2643.2,0.0056699]
[1749058212774,0.75628,2643.3,2643.2,0.0056699]
[1749058212978,1.62387146,2643.3,2643.2,0.0056699]
[1749058213167,7.92577146,2643.3,2643.2,0.0056699]
[1749058213367,2.92577146,2643.3,2643.2,0.7619699]
[1749058213574,2.92593603,2643.3,2643.2,0.0056699]
[1749058214067,7.92593603,2643.3,2643.2,4.6296699]
[1749058214870,7.92593603,2643.3,2643.2,0.0056699]
[1749058216074,0.75639,2642.9,2642.8,4.624]
[1749058216275,0.75644,2642.8,2642.7,4.624]
[1749058216478,1.49215603,2642.8,2642.3,1.0055]
[1749058216676,0.75648,2642.6,2642.5,0.7565]
[1749058216875,1.62423603,2642.6,2642.5,0.7565]
[1749058217186,0.86775603,2642.6,2642.5,0.7565]
[1749058217676,0.86775603,2642.6,2642.5,1.9997]
[1749058217879,0.86722437,2642.6,2642.5,1.9997]
[1749058219288,0.86722437,2642.6,2642.3,2.89688]
[1749058219289,0.86722437,2642.6,2642.3,1.0055]
[1749058219584,0.86722437,2642.6,2642.5,4.624]
[1749058219585,0.75648,2642.6,2642.5,4.624]
[1749058219784,1.62349788,2642.6,2642.5,4.624]
[1749058219972,1.62349788,2642.6,2642.5,5.3805]
[1749058220785,0.86701788,2642.6,2642.5,0.7565]
[1749058220977,0.86701788,2642.6,2642.5,5.3805]
[1749058221682,1.62349788,2642.6,2642.5,0.7565]
[1749058221883,1.62349788,2642.6,2642.5,5.3805]
[1749058222181,1.62374918,2642.6,2642.5,5.3805]
[1749058222376,0.86726918,2642.6,2642.5,5.3805]
[1749058222577,1.62374918,2642.6,2642.5,5.3805]
[1749058223079,0.86726918,2642.6,2642.5,5.3805]
[1749058223282,1.62374918,2642.6,2642.5,5.3805]
[1749058223978,0.86726918,2642.6,2642.5,5.3805]
[1749058224178,1.62374918,2642.6,2642.5,5.3805]
[1749058224381,0.86726918,2642.6,2642.5,5.3805]
[1749058225583,1.62374918,2642.6,2642.5,4.624]
[1749058225979,1.62374918,2642.6,2642.5,5.38051]